[Event "January 2 Early 2024"]
[Site "https://www.chess.com"]
[Date "2024.01.02"]
[Round "1"]
[White "Ibarra Jerez, Jose Carlos"]
[Black "Ortega Amarelle, Mariano"]
[Result "1-0"]
[Board "67"]
[TimeControl "180+1"]
[WhiteFideId "2226332"]
[BlackFideId "3504301"]
[WhiteElo "2910"]
[BlackElo "2476"]
[WhiteTeam "ESP"]
[BlackTeam "CPV"]
[WhiteClock "0:00:04"]
[BlackClock "0:00:00"]

1. e4 {[%clk 0:03:00]}  e5 {[%clk 0:02:59]} 2. Nf3 {[%clk 0:03:00]}  Nc6 {[%clk 0:02:59]} 3. Bb5 {[%clk 0:02:54]}  Nf6 {[%clk 0:02:46]} 4. O-O {[%clk 0:02:54]}  d6 {[%clk 0:02:41]} 5. d4 {[%clk 0:02:52]}  exd4 {[%clk 0:02:37]} 6. Nxd4 {[%clk 0:02:52]}  Bd7 {[%clk 0:02:38]} 7. Nc3 {[%clk 0:02:51]}  Be7 {[%clk 0:02:34]} 8. Bxc6 {[%clk 0:02:51]}  bxc6 {[%clk 0:02:33]} 9. Bf4 {[%clk 0:02:50]}  O-O {[%clk 0:02:32]} 10. Re1 {[%clk 0:02:50]}  Ng4 {[%clk 0:02:20]} 11. Nxc6 {[%clk 0:02:43]}  Bxc6 {[%clk 0:02:11]} 12. Qxg4 {[%clk 0:02:43]}  Rb8 {[%clk 0:01:54]} 13. b3 {[%clk 0:02:30]}  Rb4 {[%clk 0:01:44]} 14. a3 {[%clk 0:02:26]}  Bf6 {[%clk 0:01:31]} 15. e5 {[%clk 0:02:06]}  Rxf4 {[%clk 0:01:14]} 16. Qxf4 {[%clk 0:02:05]}  Bxe5 {[%clk 0:01:15]} 17. Rxe5 {[%clk 0:01:47]}  dxe5 {[%clk 0:01:15]} 18. Qxe5 {[%clk 0:01:48]}  Re8 {[%clk 0:01:15]} 19. Qc5 {[%clk 0:01:45]}  Qd2 {[%clk 0:00:59]} 20. h3 {[%clk 0:01:35]}  Ba8 {[%clk 0:00:38]} 21. Nb5 {[%clk 0:01:28]}  Qd7 {[%clk 0:00:19]} 22. Nxc7 {[%clk 0:01:14]}  Rc8 {[%clk 0:00:17]} 23. Re1 {[%clk 0:01:15]}  h5 {[%clk 0:00:13]} 24. Re7 {[%clk 0:01:11]}  Qd1+ {[%clk 0:00:12]} 25. Kh2 {[%clk 0:01:11]}  Qf1 {[%clk 0:00:12]} 26. Qg5 {[%clk 0:00:39]}  Bc6 {[%clk 0:00:07]} 27. Ne6 {[%clk 0:00:30]}  g6 {[%clk 0:00:02]} 28. Nd4 {[%clk 0:00:10]}  Qxf2 {[%clk 0:00:03]} 29. Nxc6 {[%clk 0:00:05]}  Rxc6 {[%clk 0:00:03]} 30. Qe5 {[%clk 0:00:05]}  Rf6 {[%clk 0:00:02]} 31. Re8+ {[%clk 0:00:06]}  Kg7 {[%clk 0:00:02]} 32. Qb8 {[%clk 0:00:06]}  h4 {[%clk 0:00:01]} 33. Rg8+ {[%clk 0:00:06]}  Kh6 {[%clk 0:00:02]} 34. Rh8+ {[%clk 0:00:06]}  Kg5 {[%clk 0:00:02]} 35. Qe5+ {[%clk 0:00:06]}  Rf5 {[%clk 0:00:03]} 36. Qe7+ {[%clk 0:00:06]}  Rf6 {[%clk 0:00:03]} 37. Qe5+ {[%clk 0:00:06]}  Rf5 {[%clk 0:00:03]} 38. Qd6 {[%clk 0:00:05]}  Qf4+ {[%clk 0:00:02]} 39. Qxf4+ {[%clk 0:00:05]}  Rxf4 {[%clk 0:00:03]} 40. Rc8 {[%clk 0:00:05]}  Rf2 {[%clk 0:00:03]} 41. Kg1 {[%clk 0:00:04]}  Rd2 {[%clk 0:00:02]} 42. Rc7 {[%clk 0:00:04]}  f5 {[%clk 0:00:01]} 43. b4 {[%clk 0:00:04]}  Kf4 {[%clk 0:00:02]} 44. Rc3 {[%clk 0:00:04]}  g5 {[%clk 0:00:02]} 45. b5 {[%clk 0:00:04]}  g4 {[%clk 0:00:02]} 46. hxg4 {[%clk 0:00:05]}  fxg4 {[%clk 0:00:02]} 47. a4 {[%clk 0:00:05]}  g3 {[%clk 0:00:02]} 48. Kf1 {[%clk 0:00:06]}  Rf2+ {[%clk 0:00:02]} 49. Kg1 {[%clk 0:00:06]}  Rd2 {[%clk 0:00:02]} 50. Rf3+ {[%clk 0:00:07]}  Kg4 {[%clk 0:00:00]} 51. c4 {[%clk 0:00:04]} 1-0

[Event "January 2 Early 2024"]
[Site "https://www.chess.com"]
[Date "2024.01.02"]
[Round "1"]
[White "Pranav Anand"]
[Black "Gutierrez Olivares, Daniel"]
[Result "1-0"]
[Board "69"]
[TimeControl "180+1"]
[WhiteFideId "46626786"]
[BlackFideId "2264005"]
[WhiteElo "2908"]
[BlackElo "2475"]
[WhiteTeam "IND"]
[BlackTeam "ESP"]
[WhiteClock "0:00:53"]
[BlackClock "0:00:19"]

1. d4 {[%clk 0:02:32]}  Nf6 {[%clk 0:02:59]} 2. Nf3 {[%clk 0:02:33]}  e6 {[%clk 0:02:59]} 3. Bf4 {[%clk 0:02:32]}  b6 {[%clk 0:02:58]} 4. e3 {[%clk 0:02:32]}  Bb7 {[%clk 0:02:58]} 5. Nbd2 {[%clk 0:02:33]}  c5 {[%clk 0:02:57]} 6. Bd3 {[%clk 0:02:32]}  d6 {[%clk 0:02:56]} 7. h3 {[%clk 0:02:32]}  Be7 {[%clk 0:02:55]} 8. O-O {[%clk 0:02:32]}  cxd4 {[%clk 0:02:53]} 9. exd4 {[%clk 0:02:32]}  O-O {[%clk 0:02:53]} 10. c3 {[%clk 0:02:32]}  a6 {[%clk 0:02:49]} 11. a4 {[%clk 0:02:31]}  Nbd7 {[%clk 0:02:44]} 12. Qe2 {[%clk 0:02:28]}  Nd5 {[%clk 0:02:43]} 13. Bh2 {[%clk 0:02:28]}  N7f6 {[%clk 0:02:43]} 14. Rfe1 {[%clk 0:02:26]}  Re8 {[%clk 0:02:43]} 15. Nf1 {[%clk 0:02:23]}  Bf8 {[%clk 0:02:39]} 16. Bg3 {[%clk 0:02:22]}  Nh5 {[%clk 0:02:37]} 17. Bh4 {[%clk 0:02:21]}  Qc7 {[%clk 0:02:31]} 18. Ng5 {[%clk 0:02:11]}  Ndf4 {[%clk 0:02:16]} 19. Bxh7+ {[%clk 0:02:08]}  Kh8 {[%clk 0:02:16]} 20. Qg4 {[%clk 0:02:05]}  Bxg2 {[%clk 0:02:09]} 21. Ne3 {[%clk 0:02:01]}  f6 {[%clk 0:01:56]} 22. Nxg2 {[%clk 0:01:49]}  fxg5 {[%clk 0:01:55]} 23. Bxg5 {[%clk 0:01:48]}  Kxh7 {[%clk 0:01:40]} 24. Bxf4 {[%clk 0:01:43]}  Qf7 {[%clk 0:01:37]} 25. Bg3 {[%clk 0:01:39]}  Nf6 {[%clk 0:01:27]} 26. Qf3 {[%clk 0:01:34]}  Kg8 {[%clk 0:01:22]} 27. Re2 {[%clk 0:01:33]}  Nd5 {[%clk 0:01:13]} 28. Qg4 {[%clk 0:01:32]}  b5 {[%clk 0:01:09]} 29. axb5 {[%clk 0:01:31]}  axb5 {[%clk 0:01:10]} 30. Rxa8 {[%clk 0:01:31]}  Rxa8 {[%clk 0:01:08]} 31. Rxe6 {[%clk 0:01:28]}  Ra1+ {[%clk 0:01:06]} 32. Kh2 {[%clk 0:01:28]}  Nf6 {[%clk 0:01:06]} 33. Qf5 {[%clk 0:01:20]}  Qc7 {[%clk 0:00:40]} 34. Qg6 {[%clk 0:01:06]}  Nh7 {[%clk 0:00:36]} 35. Nf4 {[%clk 0:00:58]}  Qc6 {[%clk 0:00:32]} 36. d5 {[%clk 0:00:58]}  Qc4 {[%clk 0:00:31]} 37. Re2 {[%clk 0:00:54]}  Qb3 {[%clk 0:00:19]} 38. Qe6+ {[%clk 0:00:53]} 1-0

[Event "January 2 Early 2024"]
[Site "https://www.chess.com"]
[Date "2024.01.02"]
[Round "1"]
[White "Zhigalko, Sergei"]
[Black "Spitzl, Vinzent"]
[Result "1-0"]
[Board "71"]
[TimeControl "180+1"]
[WhiteFideId "13502956"]
[BlackFideId "12901253"]
[WhiteElo "2902"]
[BlackElo "2471"]
[WhiteTeam "BLR"]
[BlackTeam "GER"]
[WhiteClock "0:00:06"]
[BlackClock "0:00:00"]

1. e4 {[%clk 0:03:00]}  c5 {[%clk 0:02:59]} 2. c3 {[%clk 0:03:00]}  d5 {[%clk 0:02:59]} 3. exd5 {[%clk 0:03:01]}  Qxd5 {[%clk 0:02:59]} 4. d4 {[%clk 0:03:02]}  Nf6 {[%clk 0:03:00]} 5. Nf3 {[%clk 0:03:02]}  Bg4 {[%clk 0:02:59]} 6. dxc5 {[%clk 0:03:00]}  Qxd1+ {[%clk 0:02:53]} 7. Kxd1 {[%clk 0:03:01]}  e5 {[%clk 0:02:53]} 8. b4 {[%clk 0:03:01]}  e4 {[%clk 0:02:45]} 9. h3 {[%clk 0:03:00]}  Bh5 {[%clk 0:02:44]} 10. g4 {[%clk 0:03:00]}  Nxg4 {[%clk 0:02:33]} 11. hxg4 {[%clk 0:03:01]}  Bxg4 {[%clk 0:02:33]} 12. Nd2 {[%clk 0:02:59]}  exf3 {[%clk 0:02:28]} 13. Bb5+ {[%clk 0:02:58]}  Nc6 {[%clk 0:02:28]} 14. Re1+ {[%clk 0:02:58]}  Be6 {[%clk 0:02:17]} 15. Nxf3 {[%clk 0:02:47]}  O-O-O+ {[%clk 0:02:17]} 16. Kc2 {[%clk 0:02:47]}  h5 {[%clk 0:01:58]} 17. Bg5 {[%clk 0:02:42]}  Rd5 {[%clk 0:01:41]} 18. Rad1 {[%clk 0:02:33]}  Rxd1 {[%clk 0:01:03]} 19. Rxd1 {[%clk 0:02:32]}  Bg4 {[%clk 0:01:04]} 20. Be2 {[%clk 0:01:38]}  Be7 {[%clk 0:00:52]} 21. Bf4 {[%clk 0:01:17]}  g5 {[%clk 0:00:44]} 22. Bh2 {[%clk 0:01:06]}  Re8 {[%clk 0:00:29]} 23. Rd2 {[%clk 0:00:46]}  Bf6 {[%clk 0:00:27]} 24. Ng1 {[%clk 0:00:37]}  Bxe2 {[%clk 0:00:23]} 25. Nxe2 {[%clk 0:00:34]}  h4 {[%clk 0:00:14]} 26. Ng1 {[%clk 0:00:11]}  Ne5 {[%clk 0:00:13]} 27. Re2 {[%clk 0:00:07]}  Kd7 {[%clk 0:00:12]} 28. f4 {[%clk 0:00:08]}  Ng4 {[%clk 0:00:07]} 29. Rd2+ {[%clk 0:00:08]}  Kc8 {[%clk 0:00:06]} 30. Nf3 {[%clk 0:00:02]}  Ne3+ {[%clk 0:00:06]} 31. Kb3 {[%clk 0:00:02]}  g4 {[%clk 0:00:07]} 32. Nd4 {[%clk 0:00:02]}  Bxd4 {[%clk 0:00:07]} 33. cxd4 {[%clk 0:00:02]}  g3 {[%clk 0:00:08]} 34. Bg1 {[%clk 0:00:02]}  h3 {[%clk 0:00:08]} 35. Re2 {[%clk 0:00:03]}  h2 {[%clk 0:00:07]} 36. Bxh2 {[%clk 0:00:03]}  gxh2 {[%clk 0:00:04]} 37. Rxh2 {[%clk 0:00:04]}  Nd5 {[%clk 0:00:05]} 38. f5 {[%clk 0:00:04]}  Re4 {[%clk 0:00:04]} 39. Kc4 {[%clk 0:00:01]}  Nf6 {[%clk 0:00:04]} 40. Kd3 {[%clk 0:00:02]}  Rf4 {[%clk 0:00:04]} 41. Rh8+ {[%clk 0:00:02]}  Kd7 {[%clk 0:00:04]} 42. b5 {[%clk 0:00:03]}  Rxf5 {[%clk 0:00:03]} 43. Rf8 {[%clk 0:00:03]}  Nd5 {[%clk 0:00:02]} 44. Ke4 {[%clk 0:00:03]}  Ne7 {[%clk 0:00:03]} 45. Rb8 {[%clk 0:00:02]}  Kc7 {[%clk 0:00:03]} 46. Ra8 {[%clk 0:00:03]}  Rf4+ {[%clk 0:00:01]} 47. Kxf4 {[%clk 0:00:03]}  Nd5+ {[%clk 0:00:01]} 48. Ke5 {[%clk 0:00:03]}  Ne7 {[%clk 0:00:02]} 49. Rxa7 {[%clk 0:00:03]}  Kb8 {[%clk 0:00:02]} 50. Ra3 {[%clk 0:00:04]}  Ng6+ {[%clk 0:00:02]} 51. Ke4 {[%clk 0:00:04]}  Ne7 {[%clk 0:00:02]} 52. Rf3 {[%clk 0:00:05]}  f5+ {[%clk 0:00:00]} 53. Rxf5 {[%clk 0:00:06]} 1-0

[Event "January 2 Early 2024"]
[Site "https://www.chess.com"]
[Date "2024.01.02"]
[Round "1"]
[White "Klymchuk, Andriy"]
[Black "Namitbir Singh Walia"]
[Result "1-0"]
[Board "73"]
[TimeControl "180+1"]
[WhiteFideId "14140063"]
[BlackFideId "35071068"]
[WhiteElo "2892"]
[BlackElo "2468"]
[WhiteTeam "UKR"]
[BlackTeam "IND"]
[WhiteClock "0:00:33"]
[BlackClock "0:00:00"]

1. e4 {[%clk 0:03:00]}  c5 {[%clk 0:02:55]} 2. Nf3 {[%clk 0:02:57]}  Nc6 {[%clk 0:02:55]} 3. Nc3 {[%clk 0:02:56]}  g6 {[%clk 0:02:54]} 4. d4 {[%clk 0:02:56]}  cxd4 {[%clk 0:02:54]} 5. Nxd4 {[%clk 0:02:57]}  Bg7 {[%clk 0:02:54]} 6. Be3 {[%clk 0:02:57]}  Nf6 {[%clk 0:02:54]} 7. Bc4 {[%clk 0:02:57]}  Qa5 {[%clk 0:02:54]} 8. O-O {[%clk 0:02:57]}  O-O {[%clk 0:02:55]} 9. Bb3 {[%clk 0:02:57]}  d6 {[%clk 0:02:55]} 10. h3 {[%clk 0:02:57]}  Bd7 {[%clk 0:02:48]} 11. Nf3 {[%clk 0:02:55]}  b5 {[%clk 0:02:38]} 12. a3 {[%clk 0:02:36]}  Rac8 {[%clk 0:02:30]} 13. Re1 {[%clk 0:02:36]}  a6 {[%clk 0:02:15]} 14. Qd2 {[%clk 0:02:27]}  Qd8 {[%clk 0:02:02]} 15. Bh6 {[%clk 0:02:24]}  Na5 {[%clk 0:01:59]} 16. Rad1 {[%clk 0:02:19]}  Nxb3 {[%clk 0:01:58]} 17. cxb3 {[%clk 0:02:19]}  Be6 {[%clk 0:01:38]} 18. Nd5 {[%clk 0:02:13]}  Nxd5 {[%clk 0:01:20]} 19. exd5 {[%clk 0:02:11]}  Bf5 {[%clk 0:01:20]} 20. Bxg7 {[%clk 0:02:07]}  Kxg7 {[%clk 0:01:20]} 21. Nd4 {[%clk 0:02:04]}  Qd7 {[%clk 0:00:58]} 22. Re3 {[%clk 0:02:00]}  e5 {[%clk 0:00:26]} 23. dxe6 {[%clk 0:01:59]}  Bxe6 {[%clk 0:00:27]} 24. Nxe6+ {[%clk 0:01:54]}  fxe6 {[%clk 0:00:27]} 25. Qd4+ {[%clk 0:01:42]}  Rf6 {[%clk 0:00:26]} 26. g4 {[%clk 0:01:34]}  h6 {[%clk 0:00:24]} 27. Qxd6 {[%clk 0:01:16]}  Qxd6 {[%clk 0:00:16]} 28. Rxd6 {[%clk 0:01:17]}  Rc2 {[%clk 0:00:16]} 29. Rc3 {[%clk 0:01:00]}  Rxb2 {[%clk 0:00:09]} 30. Rc7+ {[%clk 0:00:57]}  Kg8 {[%clk 0:00:09]} 31. Rd8+ {[%clk 0:00:53]}  Rf8 {[%clk 0:00:09]} 32. Rxf8+ {[%clk 0:00:52]}  Kxf8 {[%clk 0:00:10]} 33. Rc6 {[%clk 0:00:53]}  Rxb3 {[%clk 0:00:10]} 34. Rxa6 {[%clk 0:00:48]}  Rxh3 {[%clk 0:00:10]} 35. Rxe6 {[%clk 0:00:47]}  Kf7 {[%clk 0:00:11]} 36. Ra6 {[%clk 0:00:45]}  Rb3 {[%clk 0:00:11]} 37. Kg2 {[%clk 0:00:45]}  b4 {[%clk 0:00:09]} 38. a4 {[%clk 0:00:44]}  Ra3 {[%clk 0:00:09]} 39. f3 {[%clk 0:00:43]}  h5 {[%clk 0:00:06]} 40. Kg3 {[%clk 0:00:42]}  h4+ {[%clk 0:00:06]} 41. Kxh4 {[%clk 0:00:42]}  Rxf3 {[%clk 0:00:07]} 42. Kg5 {[%clk 0:00:41]}  Rg3 {[%clk 0:00:07]} 43. Rf6+ {[%clk 0:00:39]}  Ke7 {[%clk 0:00:06]} 44. Rb6 {[%clk 0:00:39]}  b3 {[%clk 0:00:04]} 45. a5 {[%clk 0:00:40]}  Kf7 {[%clk 0:00:03]} 46. a6 {[%clk 0:00:39]}  b2 {[%clk 0:00:03]} 47. Rb7+ {[%clk 0:00:38]}  Ke6 {[%clk 0:00:03]} 48. Rxb2 {[%clk 0:00:38]}  Ra3 {[%clk 0:00:03]} 49. Rb6+ {[%clk 0:00:37]}  Kf7 {[%clk 0:00:04]} 50. Rb7+ {[%clk 0:00:37]}  Ke6 {[%clk 0:00:04]} 51. a7 {[%clk 0:00:37]}  Ra4 {[%clk 0:00:02]} 52. Kh6 {[%clk 0:00:36]}  Kf6 {[%clk 0:00:01]} 53. g5+ {[%clk 0:00:36]}  Kf5 {[%clk 0:00:02]} 54. Rf7+ {[%clk 0:00:35]}  Kg4 {[%clk 0:00:03]} 55. Kxg6 {[%clk 0:00:34]}  Ra6+ {[%clk 0:00:03]} 56. Rf6 {[%clk 0:00:34]}  Rxa7 {[%clk 0:00:03]} 57. Kh6 {[%clk 0:00:34]}  Kh4 {[%clk 0:00:03]} 58. Rf4+ {[%clk 0:00:32]}  Kg3 {[%clk 0:00:02]} 59. Rc4 {[%clk 0:00:33]}  Ra1 {[%clk 0:00:02]} 60. g6 {[%clk 0:00:33]}  Kf3 {[%clk 0:00:02]} 61. g7 {[%clk 0:00:33]}  Rg1 {[%clk 0:00:03]} 62. Kh7 {[%clk 0:00:32]}  Rh1+ {[%clk 0:00:03]} 63. Kg6 {[%clk 0:00:33]}  Rg1+ {[%clk 0:00:02]} 64. Kf7 {[%clk 0:00:33]}  Ke3 {[%clk 0:00:00]} 65. g8=Q {[%clk 0:00:33]} 1-0

[Event "January 2 Early 2024"]
[Site "https://www.chess.com"]
[Date "2024.01.02"]
[Round "1"]
[White "Nikologorsky, Matfei"]
[Black "Kukhmazov, Arsen"]
[Result "0-1"]
[Board "76"]
[TimeControl "180+1"]
[WhiteFideId "24102474"]
[BlackFideId "24108260"]
[WhiteElo "2467"]
[BlackElo "2885"]
[WhiteTeam "FID"]
[BlackTeam "FID"]
[WhiteClock "0:00:00"]
[BlackClock "0:00:10"]

1. e4 {[%clk 0:02:59]}  c6 {[%clk 0:02:59]} 2. d4 {[%clk 0:02:59]}  d5 {[%clk 0:03:00]} 3. Nd2 {[%clk 0:02:59]}  dxe4 {[%clk 0:03:00]} 4. Nxe4 {[%clk 0:03:00]}  Bf5 {[%clk 0:03:00]} 5. Ng3 {[%clk 0:02:57]}  Bg6 {[%clk 0:03:01]} 6. Bc4 {[%clk 0:02:57]}  e6 {[%clk 0:03:00]} 7. N1e2 {[%clk 0:02:57]}  Bd6 {[%clk 0:02:56]} 8. h4 {[%clk 0:02:55]}  h6 {[%clk 0:02:52]} 9. Nf4 {[%clk 0:02:54]}  Bh7 {[%clk 0:02:51]} 10. Ngh5 {[%clk 0:02:38]}  g6 {[%clk 0:02:45]} 11. Ng3 {[%clk 0:02:18]}  Qc7 {[%clk 0:02:43]} 12. Qf3 {[%clk 0:02:16]}  Nd7 {[%clk 0:02:15]} 13. a4 {[%clk 0:02:10]}  O-O-O {[%clk 0:01:53]} 14. a5 {[%clk 0:02:09]}  a6 {[%clk 0:01:48]} 15. O-O {[%clk 0:02:01]}  Re8 {[%clk 0:01:48]} 16. Ne4 {[%clk 0:01:57]}  Ne7 {[%clk 0:01:31]} 17. Nxd6+ {[%clk 0:01:38]}  Qxd6 {[%clk 0:01:32]} 18. c3 {[%clk 0:01:38]}  Nf5 {[%clk 0:01:13]} 19. Nd3 {[%clk 0:01:28]}  Nxh4 {[%clk 0:00:53]} 20. Qe2 {[%clk 0:01:27]}  g5 {[%clk 0:00:51]} 21. Ne5 {[%clk 0:01:20]}  Nxe5 {[%clk 0:00:36]} 22. dxe5 {[%clk 0:01:19]}  Qc7 {[%clk 0:00:36]} 23. b4 {[%clk 0:01:07]}  Ng6 {[%clk 0:00:34]} 24. Re1 {[%clk 0:01:07]}  Rd8 {[%clk 0:00:23]} 25. Be3 {[%clk 0:00:38]}  Nf4 {[%clk 0:00:23]} 26. Qf3 {[%clk 0:00:36]}  Nd5 {[%clk 0:00:23]} 27. Bd4 {[%clk 0:00:28]}  g4 {[%clk 0:00:21]} 28. Qxg4 {[%clk 0:00:25]}  Rhg8 {[%clk 0:00:21]} 29. Qf3 {[%clk 0:00:26]}  Bf5 {[%clk 0:00:20]} 30. Bf1 {[%clk 0:00:24]}  Rg4 {[%clk 0:00:18]} 31. Red1 {[%clk 0:00:21]}  Rdg8 {[%clk 0:00:19]} 32. c4 {[%clk 0:00:19]}  Be4 {[%clk 0:00:13]} 33. Qh3 {[%clk 0:00:14]}  Nf4 {[%clk 0:00:13]} 34. Qxh6 {[%clk 0:00:13]}  Bxg2 {[%clk 0:00:13]} 35. Bxg2 {[%clk 0:00:12]}  Rxg2+ {[%clk 0:00:13]} 36. Kh1 {[%clk 0:00:11]}  R2g5 {[%clk 0:00:10]} 37. Bb6 {[%clk 0:00:08]}  Qe7 {[%clk 0:00:10]} 38. Qh2 {[%clk 0:00:00]}  Rh5 {[%clk 0:00:10]} 0-1

[Event "January 2 Early 2024"]
[Site "https://www.chess.com"]
[Date "2024.01.02"]
[Round "1"]
[White "Viana Junior, Carlos Alberto"]
[Black "Fernandez Guillen, Ernesto J."]
[Result "0-1"]
[Board "78"]
[TimeControl "180+1"]
[WhiteFideId "2178117"]
[BlackFideId "3512428"]
[WhiteElo "2462"]
[BlackElo "2881"]
[WhiteTeam "BRA"]
[BlackTeam "CUB"]
[WhiteClock "0:00:13"]
[BlackClock "0:00:04"]

1. e4 {[%clk 0:02:58]}  e5 {[%clk 0:02:51]} 2. Nf3 {[%clk 0:02:58]}  Nc6 {[%clk 0:02:44]} 3. Bc4 {[%clk 0:02:58]}  g6 {[%clk 0:02:43]} 4. d4 {[%clk 0:02:55]}  exd4 {[%clk 0:02:44]} 5. c3 {[%clk 0:02:54]}  dxc3 {[%clk 0:02:44]} 6. Nxc3 {[%clk 0:02:55]}  Bg7 {[%clk 0:02:44]} 7. Bg5 {[%clk 0:02:52]}  f6 {[%clk 0:02:42]} 8. Bf4 {[%clk 0:02:51]}  d6 {[%clk 0:02:40]} 9. O-O {[%clk 0:02:50]}  Ne5 {[%clk 0:02:34]} 10. Bb3 {[%clk 0:02:49]}  Bg4 {[%clk 0:02:04]} 11. Re1 {[%clk 0:02:48]}  Qd7 {[%clk 0:01:55]} 12. Rc1 {[%clk 0:02:38]}  c6 {[%clk 0:01:52]} 13. Re3 {[%clk 0:02:34]}  Ne7 {[%clk 0:01:49]} 14. Qd2 {[%clk 0:02:26]}  Bxf3 {[%clk 0:01:45]} 15. gxf3 {[%clk 0:02:27]}  g5 {[%clk 0:01:39]} 16. Bg3 {[%clk 0:02:27]}  h5 {[%clk 0:01:40]} 17. Rd1 {[%clk 0:02:19]}  O-O-O {[%clk 0:01:20]} 18. Bxe5 {[%clk 0:02:02]}  fxe5 {[%clk 0:01:20]} 19. Rd3 {[%clk 0:02:02]}  Rh6 {[%clk 0:01:16]} 20. Kh1 {[%clk 0:01:59]}  g4 {[%clk 0:01:15]} 21. Rg1 {[%clk 0:01:49]}  Bf8 {[%clk 0:01:12]} 22. Bd1 {[%clk 0:01:40]}  Kb8 {[%clk 0:00:59]} 23. fxg4 {[%clk 0:01:37]}  hxg4 {[%clk 0:01:00]} 24. Bxg4 {[%clk 0:01:37]}  Qc7 {[%clk 0:01:00]} 25. Qg5 {[%clk 0:01:34]}  Ng6 {[%clk 0:00:56]} 26. Ne2 {[%clk 0:01:31]}  d5 {[%clk 0:00:39]} 27. Rf3 {[%clk 0:01:26]}  Nf4 {[%clk 0:00:26]} 28. Nxf4 {[%clk 0:01:21]}  exf4 {[%clk 0:00:27]} 29. Rxf4 {[%clk 0:01:21]}  Bd6 {[%clk 0:00:18]} 30. Qxh6 {[%clk 0:01:12]}  Bxf4 {[%clk 0:00:19]} 31. Qh4 {[%clk 0:01:08]}  dxe4 {[%clk 0:00:18]} 32. Bf5 {[%clk 0:01:08]}  Be5 {[%clk 0:00:18]} 33. h3 {[%clk 0:01:06]}  Bxb2 {[%clk 0:00:15]} 34. Qxe4 {[%clk 0:01:03]}  a5 {[%clk 0:00:14]} 35. a4 {[%clk 0:01:02]}  Bc3 {[%clk 0:00:14]} 36. Rg3 {[%clk 0:01:01]}  Bb4 {[%clk 0:00:14]} 37. Kg2 {[%clk 0:01:01]}  Qd6 {[%clk 0:00:14]} 38. Rd3 {[%clk 0:00:56]}  Qc7 {[%clk 0:00:13]} 39. Rxd8+ {[%clk 0:00:53]}  Qxd8 {[%clk 0:00:14]} 40. Qe5+ {[%clk 0:00:54]}  Ka7 {[%clk 0:00:13]} 41. Qe4 {[%clk 0:00:49]}  Qg5+ {[%clk 0:00:13]} 42. Bg4 {[%clk 0:00:49]}  Bc5 {[%clk 0:00:12]} 43. Qc4 {[%clk 0:00:47]}  Kb6 {[%clk 0:00:12]} 44. Qb3+ {[%clk 0:00:47]}  Ka7 {[%clk 0:00:12]} 45. Qf3 {[%clk 0:00:44]}  Qh4 {[%clk 0:00:10]} 46. Qf5 {[%clk 0:00:42]}  Bb6 {[%clk 0:00:10]} 47. Qf4 {[%clk 0:00:41]}  Qe7 {[%clk 0:00:10]} 48. Qf3 {[%clk 0:00:40]}  Qb4 {[%clk 0:00:10]} 49. Qd1 {[%clk 0:00:37]}  Qf4 {[%clk 0:00:10]} 50. Qf3 {[%clk 0:00:37]}  Qxa4 {[%clk 0:00:10]} 51. h4 {[%clk 0:00:37]}  Qd4 {[%clk 0:00:11]} 52. h5 {[%clk 0:00:37]}  a4 {[%clk 0:00:11]} 53. h6 {[%clk 0:00:37]}  Bc5 {[%clk 0:00:12]} 54. h7 {[%clk 0:00:37]}  a3 {[%clk 0:00:12]} 55. Be6 {[%clk 0:00:33]}  Qg7+ {[%clk 0:00:11]} 56. Qg4 {[%clk 0:00:28]}  Qxh7 {[%clk 0:00:11]} 57. Qa4+ {[%clk 0:00:28]}  Kb6 {[%clk 0:00:11]} 58. Qb3+ {[%clk 0:00:29]}  Kc7 {[%clk 0:00:12]} 59. Bg4 {[%clk 0:00:27]}  Qe4+ {[%clk 0:00:11]} 60. f3 {[%clk 0:00:27]}  Qe2+ {[%clk 0:00:11]} 61. Kh3 {[%clk 0:00:27]}  Bd6 {[%clk 0:00:10]} 62. Kh4 {[%clk 0:00:27]}  Qe7+ {[%clk 0:00:09]} 63. Kh5 {[%clk 0:00:21]}  Qh7+ {[%clk 0:00:09]} 64. Kg5 {[%clk 0:00:22]}  Qg7+ {[%clk 0:00:10]} 65. Kf5 {[%clk 0:00:21]}  Qh7+ {[%clk 0:00:07]} 66. Kg5 {[%clk 0:00:21]}  Be7+ {[%clk 0:00:07]} 67. Kf4 {[%clk 0:00:20]}  Qh6+ {[%clk 0:00:08]} 68. Ke4 {[%clk 0:00:20]}  Qg6+ {[%clk 0:00:07]} 69. Bf5 {[%clk 0:00:20]}  Qd6 {[%clk 0:00:08]} 70. f4 {[%clk 0:00:18]}  Qd2 {[%clk 0:00:06]} 71. Be6 {[%clk 0:00:18]}  Bd6 {[%clk 0:00:06]} 72. f5 {[%clk 0:00:15]}  Qe2+ {[%clk 0:00:06]} 73. Kd4 {[%clk 0:00:14]}  Be5+ {[%clk 0:00:06]} 74. Kc5 {[%clk 0:00:13]}  Qf2+ {[%clk 0:00:06]} 75. Kb4 {[%clk 0:00:13]}  Bd6+ {[%clk 0:00:04]} 76. Ka4 {[%clk 0:00:13]}  Qa7# {[%clk 0:00:04]} 0-1

[Event "January 2 Early 2024"]
[Site "https://www.chess.com"]
[Date "2024.01.02"]
[Round "1"]
[White "Szpar, Milosz"]
[Black "Vujacic, Igor"]
[Result "1-0"]
[Board "81"]
[TimeControl "180+1"]
[WhiteFideId "1184989"]
[BlackFideId "932620"]
[WhiteElo "2874"]
[BlackElo "2461"]
[WhiteTeam "POL"]
[BlackTeam "MNE"]
[WhiteClock "0:02:02"]
[BlackClock "0:00:14"]

1. e4 {[%clk 0:03:00]}  c5 {[%clk 0:03:00]} 2. c3 {[%clk 0:02:59]}  Nf6 {[%clk 0:02:59]} 3. e5 {[%clk 0:02:59]}  Nd5 {[%clk 0:03:00]} 4. d4 {[%clk 0:03:00]}  cxd4 {[%clk 0:03:00]} 5. Nf3 {[%clk 0:03:00]}  Nc6 {[%clk 0:02:56]} 6. Bc4 {[%clk 0:03:00]}  Nb6 {[%clk 0:02:50]} 7. Bb3 {[%clk 0:03:00]}  d5 {[%clk 0:02:46]} 8. exd6 {[%clk 0:02:59]}  Qxd6 {[%clk 0:02:39]} 9. O-O {[%clk 0:02:59]}  e6 {[%clk 0:02:37]} 10. cxd4 {[%clk 0:02:58]}  Be7 {[%clk 0:02:36]} 11. Nc3 {[%clk 0:02:58]}  O-O {[%clk 0:02:30]} 12. Re1 {[%clk 0:02:45]}  Rd8 {[%clk 0:02:26]} 13. Be3 {[%clk 0:02:38]}  Bd7 {[%clk 0:01:35]} 14. a3 {[%clk 0:02:38]}  Be8 {[%clk 0:01:33]} 15. Bc2 {[%clk 0:02:32]}  Rac8 {[%clk 0:01:18]} 16. Qd3 {[%clk 0:02:29]}  g6 {[%clk 0:01:19]} 17. Rad1 {[%clk 0:02:29]}  Nd5 {[%clk 0:01:17]} 18. Ne4 {[%clk 0:02:25]}  Qc7 {[%clk 0:01:15]} 19. Bb1 {[%clk 0:02:22]}  a6 {[%clk 0:00:58]} 20. Bh6 {[%clk 0:02:20]}  Qb6 {[%clk 0:00:46]} 21. Qd2 {[%clk 0:02:19]}  Na5 {[%clk 0:00:41]} 22. Ne5 {[%clk 0:02:04]}  Nc4 {[%clk 0:00:36]} 23. Nxc4 {[%clk 0:02:03]}  Rxc4 {[%clk 0:00:36]} 24. Ba2 {[%clk 0:02:02]}  Rc7 {[%clk 0:00:29]} 25. Bg5 {[%clk 0:02:02]}  Bxg5 {[%clk 0:00:21]} 26. Qxg5 {[%clk 0:02:03]}  Kg7 {[%clk 0:00:14]} 27. Qxd8 {[%clk 0:02:02]} 1-0